bitfinex/quotes_ETHUSD_20260107
["timestamp","ask_amount","ask_price","bid_price","bid_amount"]
[1767769207214,0.001,3246.8,3246.4,0.92045456]
[1767769207376,0.90122108,3247.6,3246.4,0.92045456]
[1767769207377,0.807,3247.6,3247.0,0.92045456]
[1767769207700,3.08006311,3247.8,3246.5,0.92045456]
[1767769207882,0.001,3247.8,3247.2,0.92045456]
[1767769209699,0.001,3247.8,3247.3,0.92045456]
[1767769209899,0.001,3247.5,3247.3,0.92045456]
[1767769210098,0.001,3247.8,3247.3,0.92045456]
[1767769210099,0.001,3247.8,3247.4,0.92045456]
[1767769210473,0.90122108,3247.7,3247.1,3.0796395]
[1767769210673,1e-08,3247.8,3247.3,0.92045456]
[1767769211477,0.807,3248.2,3247.3,0.92045456]
[1767769211873,0.807,3248.2,3247.4,0.92045456]
[1767769212172,1.19555342,3248.2,3247.4,0.92045456]
[1767769217203,0.807,3248.2,3247.4,0.92045456]
[1767769221800,3.88563446,3248.2,3247.4,0.92045456]
[1767769222015,3.88563446,3248.2,3247.2,0.92045456]
[1767769222820,0.001,3247.9,3247.0,0.92045456]
[1767769223019,0.001,3247.9,3246.9,0.92045456]
[1767769223232,0.001,3247.9,3247.0,0.70803658]
[1767769223440,0.001,3247.9,3247.1,0.92045456]
[1767769225335,0.001,3247.9,3247.3,0.92045456]
[1767769225855,0.001,3247.9,3247.2,3.07957625]
[1767769227040,0.807,3248.2,3247.2,4.00003081]
[1767769227211,0.807,3248.2,3247.2,4.77880441]
[1767769227537,0.807,3248.2,3247.2,7.85838066]
[1767769228041,4.51096995,3248.3,3247.3,0.92045456]
[1767769228237,8.39650457,3248.3,3247.3,0.92045456]
[1767769228541,3.8855348,3248.3,3247.3,0.92045456]
[1767769228730,3.8855348,3248.3,3247.5,0.92045456]
[1767769230911,0.807,3248.3,3247.5,0.92045456]
[1767769233839,0.807,3248.3,3247.4,3.55726593]
[1767769234242,0.807,3248.3,3247.4,0.47788044]
[1767769234430,0.807,3248.3,3247.5,0.99548896]
[1767769234749,0.001,3248.0,3247.7,0.99748896]
[1767769236731,0.807,3248.3,3247.7,0.002]
[1767769236946,0.27960278,3248.2,3247.7,0.002]
[1767769237241,0.807,3248.3,3247.7,0.002]
[1767769237242,0.27996493,3248.1,3247.7,0.31012209]
[1767769237414,0.807,3248.3,3248.1,0.06333639]
[1767769237616,0.27998007,3248.2,3248.1,0.06133639]
[1767769238763,0.27998007,3248.2,3248.1,0.05933639]
[1767769239267,0.807,3248.9,3248.1,1.05482535]
[1767769239556,0.27991172,3248.8,3248.1,1.05482535]
[1767769239762,0.69639938,3248.7,3248.1,1.05482535]
[1767769239962,0.27991172,3248.6,3248.1,1.05482535]
[1767769240164,0.27991172,3248.5,3248.1,1.05482535]
[1767769240370,0.27991172,3248.4,3248.1,1.05482535]
[1767769240569,0.41648766,3248.7,3248.1,1.05482535]
[1767769240877,0.27985749,3248.6,3248.1,1.05482535]
[1767769241032,0.27985749,3248.5,3248.1,1.05482535]
[1767769241233,0.27985749,3248.4,3248.1,1.05482535]
[1767769241561,3.49469981,3248.7,3248.1,1.05482535]
[1767769241863,0.62928631,3248.6,3248.1,1.05482535]
[1767769242156,0.27981633,3248.5,3248.1,1.05482535]
[1767769242343,3.07988056,3249.0,3248.1,1.05482535]
[1767769242528,0.27979371,3248.9,3248.1,1.05482535]
[1767769242735,4.79076366,3248.8,3248.1,0.05933639]
[1767769242932,0.83957008,3248.7,3248.1,0.05933639]
[1767769243165,3.35805246,3248.6,3248.1,0.05933639]
[1767769243362,3.07825875,3248.6,3248.1,0.05933639]
[1767769243532,3.63795529,3248.7,3248.1,0.05933639]
[1767769243865,0.27975008,3248.6,3248.1,0.05933639]
[1767769244055,3.63795529,3248.7,3248.1,0.05933639]
[1767769244254,0.2797502,3248.6,3248.1,0.05933639]
[1767769244469,3.63795529,3248.7,3248.1,0.05933639]
[1767769244764,1.09460696,3248.6,3248.1,0.05933639]
[1767769245063,0.81489252,3248.6,3248.1,0.05933639]
[1767769247135,3.89314554,3248.6,3248.1,0.05933639]
[1767769247432,0.81489252,3248.6,3248.1,0.05933639]
[1767769248157,0.002,3248.3,3248.1,0.05933639]
[1767769250036,0.002,3248.3,3248.1,1.05482535]
[1767769251065,0.002,3248.6,3248.1,1.05482535]
[1767769251268,0.002,3248.6,3248.1,0.05933639]
[1767769251485,0.002,3248.6,3248.2,0.99548896]
[1767769251648,0.002,3248.6,3248.2,0.99348896]
[1767769252941,0.002,3249.0,3248.5,0.99548896]
[1767769253273,0.002,3248.8,3248.1,0.37325165]
[1767769253474,0.002,3248.8,3248.1,1.05482535]
[1767769258181,0.002,3248.8,3248.1,0.99548896]
[1767769259877,7.58894433,3248.9,3248.1,0.99548896]
[1767769260083,0.27996331,3248.8,3248.1,0.99548896]
[1767769260283,7.58894433,3248.9,3248.1,0.99548896]
[1767769260477,0.27997832,3248.8,3248.1,0.99548896]
[1767769260775,8.65601812,3248.9,3248.1,0.99548896]
[1767769260982,0.27998473,3248.8,3248.1,0.99548896]
[1767769261152,4.14504817,3248.9,3248.1,0.99548896]
[1767769261351,0.27998483,3248.8,3248.4,0.001]
[1767769261582,0.4429033,3248.8,3248.4,0.001]
[1767769262152,0.4429033,3248.8,3248.4,0.93046947]
[1767769262481,0.002,3249.0,3248.4,0.93046947]
[1767769266390,0.002,3249.0,3248.5,0.92946947]
[1767769268286,0.002,3249.0,3248.6,0.92946947]
[1767769268687,0.002,3249.3,3248.9,0.92946947]
[1767769268892,0.27998132,3249.2,3248.9,0.92946947]
[1767769269197,0.002,3249.3,3248.9,0.92946947]
[1767769269499,0.27998438,3249.2,3248.9,0.92946947]
[1767769269793,0.002,3249.3,3248.9,0.92946947]
[1767769269987,0.27996318,3249.2,3248.9,0.92946947]
[1767769270298,0.002,3249.3,3248.9,0.92946947]
[1767769270486,0.27995156,3249.2,3248.9,0.92946947]
[1767769270683,0.002,3249.3,3248.9,0.92946947]
[1767769270886,0.27995154,3249.2,3248.9,0.92946947]
[1767769271202,0.002,3249.3,3248.9,0.92946947]
[1767769271499,0.002,3249.1,3248.4,0.001]
[1767769271798,0.002,3249.3,3248.6,0.92946947]
[1767769272022,0.27994586,3249.2,3248.6,0.92946947]
[1767769272305,0.002,3249.3,3248.6,0.92946947]
[1767769272599,0.27994566,3249.2,3248.6,0.92946947]
[1767769272799,0.002,3249.3,3248.6,0.92946947]
[1767769273098,0.002,3248.9,3248.6,0.92946947]
[1767769273294,0.002,3249.2,3248.6,1.09842122]
[1767769273594,0.002,3249.1,3248.6,0.16895175]
[1767769274502,0.002,3249.1,3248.5,0.75904805]
[1767769274999,0.002,3249.2,3248.6,0.92946947]
[1767769275907,0.002,3249.1,3248.4,0.001]
[1767769276109,0.002,3249.1,3248.4,0.93046947]
[1767769278015,0.002,3249.2,3248.4,0.93046947]
[1767769281109,0.002,3249.2,3248.5,0.92946947]
[1767769283517,0.002,3249.2,3248.6,0.92946947]
[1767769283705,0.002,3249.2,3248.8,0.92946947]
[1767769285726,0.002,3249.3,3248.7,1.36102945]
[1767769286027,0.004,3249.3,3248.7,0.40077844]
[1767769286226,0.002,3249.3,3248.8,0.92946947]
[1767769286932,0.002,3248.9,3248.8,0.92946947]
[1767769287108,0.004,3249.2,3248.8,0.40086874]
[1767769287307,0.002,3249.3,3248.8,1.33033821]
[1767769287723,0.002,3249.3,3248.9,0.92946947]
[1767769288913,0.002,3249.6,3249.2,0.92946947]
[1767769289114,0.002,3249.6,3249.2,0.92746947]
[1767769289115,0.28009484,3249.5,3249.2,0.92746947]
[1767769289325,0.002,3249.6,3249.2,0.92746947]
[1767769297739,0.002,3249.6,3249.2,0.92546947]
[1767769298643,0.002,3249.3,3249.2,0.92546947]
[1767769298839,0.004,3249.5,3249.0,3.0778365]
[1767769299010,0.002,3249.6,3249.1,0.30778365]
[1767769299215,0.002,3249.6,3249.2,0.90107268]
[1767769305418,0.002,3249.8,3249.4,0.90107268]
[1767769306246,0.002,3249.8,3248.7,0.83878154]
[1767769306454,0.90707268,3249.8,3248.8,0.90107268]
[1767769306647,0.90707268,3249.8,3248.9,0.90107268]
[1767769308855,0.90507268,3249.6,3248.9,0.90107268]
[1767769309752,3.07720712,3249.7,3248.9,0.90107268]
[1767769310549,3.07720712,3249.7,3249.2,0.001]
[1767769311055,0.002,3249.4,3249.2,0.001]
[1767769312851,0.002,3249.4,3249.2,0.90207268]
[1767769313728,0.002,3249.7,3249.2,0.90207268]
[1767769322679,0.90507268,3249.6,3249.2,0.001]
[1767769324280,0.002,3249.9,3249.5,0.90030787]
[1767769324445,0.002,3249.9,3249.6,0.90030787]
[1767769324762,0.002,3249.9,3249.5,0.807]
[1767769324961,0.002,3249.9,3249.3,0.807]
[1767769324962,0.90707268,3249.9,3249.3,0.807]
[1767769325284,0.002,3250.1,3249.9,0.01899039]
[1767769325446,0.002,3250.1,3249.4,0.90030787]
[1767769325641,0.002,3249.7,3249.4,0.90030787]
[1767769326773,0.002,3249.7,3249.2,0.001]
[1767769327078,0.002,3249.7,3249.2,0.90130787]
[1767769329406,0.002,3250.1,3249.7,0.90030787]
[1767769329555,0.002,3250.3,3249.7,0.90030787]
[1767769332358,0.002,3250.3,3249.9,0.90030787]
[1767769337777,0.002,3250.0,3249.9,0.90030787]
[1767769337982,0.002,3250.5,3250.1,0.90030787]
[1767769339292,0.002,3250.5,3249.8,0.001]
[1767769339464,0.002,3250.5,3249.8,0.90130787]
[1767769339666,0.002,3250.5,3250.0,0.90030787]
[1767769343195,0.002,3250.5,3249.8,0.001]
[1767769345398,3.07540902,3251.6,3250.2,0.90030787]
[1767769345569,4.77436935,3251.5,3250.0,0.90030787]
[1767769345768,0.27081105,3251.4,3250.0,0.90030787]
[1767769345983,4.8112992,3251.5,3250.0,0.90030787]
[1767769346182,0.27080096,3251.4,3250.0,0.90030787]
[1767769346382,4.8112992,3251.5,3250.0,0.90030787]
[1767769346694,6.15138558,3251.3,3250.2,0.90030787]
[1767769347200,6.15138558,3251.3,3250.3,0.90030787]
[1767769348786,3.07554781,3251.5,3250.3,0.90030787]
[1767769350002,3.07554781,3251.5,3250.3,0.90130787]
[1767769350207,0.002,3251.0,3250.3,0.90130787]
[1767769351400,0.002,3251.0,3250.3,0.001]
[1767769353004,0.002,3251.0,3250.3,0.98256816]
[1767769356103,0.002,3251.0,3250.3,0.98056816]
[1767769356775,0.002,3251.0,3250.0,3.07688799]
[1767769356776,0.003,3251.0,3250.0,3.07688799]
[1767769356979,0.001,3250.9,3250.1,0.85620145]
[1767769357182,0.001,3250.9,3250.1,1.83776961]
[1767769358289,0.002,3251.0,3250.2,0.98156816]
[1767769362323,0.002,3250.7,3250.2,0.98156816]
[1767769369100,0.002,3251.0,3250.3,0.98156816]
[1767769369405,0.002,3251.3,3250.9,0.98156816]
[1767769369600,0.003,3251.2,3250.5,4.5035583]
[1767769369802,0.002,3251.3,3250.5,4.5035583]
[1767769370010,0.005,3251.3,3250.5,4.5035583]
[1767769370203,0.005,3251.3,3250.5,5.48512646]
[1767769370408,0.005,3251.3,3250.6,0.56814401]
[1767769370813,0.005,3251.3,3250.7,0.806]
[1767769371013,0.005,3251.3,3250.7,3.88223999]
[1767769371609,0.002,3251.7,3250.9,0.98156816]
[1767769372000,0.002,3251.7,3250.8,4.5035583]
[1767769372300,0.002,3251.7,3251.0,0.98156816]
[1767769372508,3.07731514,3251.7,3251.0,0.98156816]
[1767769373114,0.002,3251.7,3251.0,0.98156816]
[1767769374417,0.002,3251.2,3251.0,0.98156816]
[1767769374628,0.002,3251.7,3250.9,1.14620588]
[1767769375003,0.002,3251.7,3250.7,1.78756816]
[1767769375442,0.002,3251.7,3250.8,0.98156816]
[1767769377239,0.002,3251.7,3250.9,0.98156816]
[1767769387121,0.002,3251.4,3250.9,0.98156816]
[1767769393542,0.96709356,3251.4,3250.8,0.001]
[1767769394218,0.96509356,3251.2,3250.8,0.001]
[1767769394419,0.71164791,3251.1,3250.8,0.001]
[1767769395236,1.67674147,3251.1,3250.8,0.001]
[1767769396742,3.07597662,3251.0,3250.8,0.001]
[1767769403848,0.96509356,3251.0,3250.2,3.07667469]
[1767769404041,0.96509356,3251.0,3250.3,0.03076639]
[1767769404238,0.96509356,3251.0,3250.4,0.31074411]
[1767769404438,3.07589486,3251.1,3250.5,1.0027984]
[1767769407049,3.0757874,3251.2,3250.5,1.0027984]
[1767769407230,3.0757874,3251.2,3250.5,0.97203391]
[1767769407427,3.0757874,3251.2,3250.7,0.97203391]
[1767769407628,0.002,3251.4,3250.7,0.97203391]
[1767769407828,0.96709356,3251.4,3250.6,0.97203391]
[1767769408038,0.002,3251.4,3250.8,0.97203391]
[1767769409250,0.002,3251.4,3250.9,0.97203391]
[1767769411141,0.002,3251.2,3250.9,0.97203391]
[1767769411348,0.002,3251.4,3250.8,4.04917418]
[1767769411544,0.002,3251.4,3250.9,0.97203391]
[1767769411749,0.002,3251.4,3250.8,3.07714027]
[1767769411750,0.002,3251.4,3251.0,0.40491742]
[1767769412654,0.98023173,3251.5,3251.0,0.40491742]
[1767769412953,0.002,3251.7,3251.1,0.92613804]
[1767769423568,0.002,3251.7,3251.4,0.001]
[1767769424267,0.002,3251.7,3251.4,0.92713804]
[1767769426269,6.14968328,3252.2,3251.5,0.92613804]
[1767769426470,3.07484164,3252.2,3251.5,0.92613804]
[1767769427275,3.07476607,3252.3,3251.5,0.92613804]
[1767769427474,3.07476607,3252.3,3251.7,0.92613804]
[1767769428656,3.07666051,3252.4,3251.7,0.92613804]
[1767769431071,0.002,3252.4,3251.7,0.92613804]
[1767769433876,0.002,3252.4,3251.8,0.92613804]
[1767769435283,0.98223173,3252.4,3251.6,3.07538816]
[1767769435481,0.98223173,3252.4,3251.7,0.39121432]
[1767769435782,0.002,3252.4,3251.8,0.92613804]
[1767769436364,0.002,3252.1,3251.8,0.92613804]
[1767769436556,0.002,3252.4,3251.9,0.92613804]
[1767769446688,0.002,3252.4,3251.7,1.36476642]
[1767769446894,0.93393153,3252.4,3251.8,0.21707664]
[1767769447703,0.93393153,3252.4,3251.5,0.9735521]
[1767769448190,0.002,3252.1,3251.5,0.9735521]
[1767769448396,0.93393153,3252.1,3251.5,0.9735521]
[1767769448795,3.07503075,3252.0,3251.4,0.001]
[1767769448995,3.07503075,3252.0,3251.4,0.9745521]
[1767769450015,0.93193153,3251.9,3251.4,0.001]
[1767769451007,3.07521987,3251.8,3251.4,0.001]
[1767769452982,6.15009014,3252.0,3251.4,0.001]
[1767769453182,0.93193153,3251.9,3251.4,0.001]
[1767769454420,3.07521987,3251.8,3251.4,0.001]
[1767769455386,3.07521987,3251.8,3251.4,0.9745521]
[1767769456216,3.07503075,3252.0,3251.4,0.9745521]
[1767769460315,3.07503075,3252.0,3251.7,0.001]
[1767769460525,3.78342288,3252.0,3251.7,0.001]
[1767769465124,7.79038516,3252.0,3251.4,0.9745521]
[1767769465321,7.79038516,3252.0,3251.4,0.001]
[1767769467265,7.79038516,3252.0,3251.4,0.9745521]
[1767769472835,7.79038516,3252.0,3251.7,0.001]
[1767769473037,3.07521987,3251.8,3251.4,0.9745521]
[1767769475734,6.15028302,3251.9,3251.4,0.9745521]
[1767769477225,3.07514151,3251.9,3251.4,0.9745521]
[1767769482552,6.15028302,3251.9,3251.4,0.9745521]
[1767769484446,6.15028302,3251.9,3251.7,0.001]
[1767769484646,0.68586752,3251.8,3251.4,0.9745521]
[1767769484948,6.15028302,3251.9,3251.4,0.9745521]
[1767769487851,7.11901736,3251.9,3251.4,0.001]
[1767769488147,7.11901736,3251.9,3251.1,0.91296848]
[1767769488148,0.28792652,3251.8,3251.1,0.91296848]
[1767769488321,10.6506289,3251.9,3251.1,0.91296848]
[1767769488322,11.61936324,3251.9,3251.1,0.91296848]
[1767769488521,0.28790984,3251.8,3251.1,0.91296848]
[1767769488825,1.26156652,3251.8,3251.1,0.91296848]
[1767769489122,3.07531445,3251.7,3251.1,0.91296848]
[1767769494735,6.1506289,3251.7,3251.1,0.91296848]
[1767769496054,6.1506289,3251.7,3251.4,0.001]
[1767769496556,6.1526289,3251.7,3251.4,0.001]
[1767769496726,7.44095646,3251.7,3251.4,0.001]
[1767769500259,4.36564201,3251.7,3251.4,0.001]
[1767769501560,7.44095646,3251.7,3251.4,0.001]
[1767769504365,4.36564201,3251.7,3251.4,0.001]
[1767769505568,7.44095646,3251.7,3251.4,0.001]
[1767769505865,0.74409565,3251.6,3251.4,0.001]
[1767769508773,3.07550361,3251.5,3251.4,0.001]
[1767769511570,0.002,3251.7,3251.4,0.001]
[1767769521678,0.97147456,3251.6,3251.4,0.001]
[1767769521854,0.97147456,3251.6,3250.8,0.001]
[1767769522055,0.97147456,3251.6,3250.8,0.38933124]
[1767769522260,0.002,3251.7,3250.9,0.98146053]
[1767769522779,0.97347456,3251.7,3250.9,0.98146053]
[1767769525185,3.07540902,3251.6,3250.9,0.98146053]
[1767769527487,0.002,3251.7,3250.9,0.98146053]
[1767769527663,0.002,3251.7,3251.0,0.98146053]
[1767769527864,0.97147456,3251.6,3250.9,0.44470513]
[1767769528069,0.002,3251.7,3250.9,0.44470513]
[1767769528267,0.97347456,3251.7,3250.9,1.42616566]
[1767769529287,0.002,3251.7,3251.0,0.98146053]
[1767769530462,0.97147456,3251.6,3250.9,0.44470513]
[1767769530662,6.1526289,3251.7,3251.0,0.98146053]
[1767769531682,6.1526289,3251.7,3250.8,0.001]
[1767769531861,0.91981618,3251.6,3250.8,0.001]
[1767769532063,0.91981618,3251.6,3251.3,0.001]
[1767769532283,0.91981618,3251.6,3250.8,0.001]
[1767769532481,0.91981618,3251.3,3250.8,0.001]
[1767769532681,0.91981618,3251.3,3250.8,0.38933217]
[1767769532890,0.002,3251.4,3250.9,0.98940871]
[1767769533561,0.92181618,3251.4,3250.8,0.38933217]
[1767769533762,0.92181618,3251.4,3250.3,0.98940871]
[1767769534489,3.99550897,3251.3,3250.4,0.98940871]
[1767769538574,3.99550897,3251.3,3250.5,0.98940871]
[1767769539288,3.07569279,3251.3,3250.5,0.98940871]
[1767769539494,3.07569279,3251.3,3250.7,0.98940871]
[1767769539988,0.002,3251.4,3250.7,0.98940871]
[1767769543996,0.002,3251.4,3250.7,0.99040871]
[1767769544592,0.002,3251.1,3250.7,0.99040871]
[1767769546595,3.07732738,3251.7,3251.2,0.98940871]
[1767769546796,3.69258037,3251.7,3251.2,0.98940871]
[1767769547091,3.07733568,3251.7,3251.2,0.98940871]
[1767769548182,0.002,3251.7,3251.2,0.98940871]
[1767769556109,0.002,3251.7,3250.8,0.98940871]
[1767769556893,0.002,3251.4,3250.8,0.98940871]
[1767769560510,6.15025062,3251.9,3250.7,0.807]
[1767769560511,7.0700668,3251.9,3250.9,0.03076071]
[1767769560679,1.62682286,3251.8,3251.0,0.98940871]
[1767769561213,3.07531445,3251.7,3251.0,0.98940871]
[1767769561906,3.99507191,3251.8,3251.0,0.98940871]
[1767769563417,7.07032764,3251.8,3251.0,0.98940871]
[1767769565305,3.07488938,3252.2,3251.0,0.98940871]
[1767769565306,3.07540902,3251.6,3251.0,0.98940871]
[1767769565506,7.07821898,3251.6,3251.0,0.98940871]
[1767769565698,0.92740094,3251.5,3250.8,0.9433146]
[1767769567194,4.00295999,3251.5,3250.8,0.9433146]
[1767769568821,4.00295999,3251.5,3251.3,0.001]
[1767769569012,4.00495999,3251.5,3251.3,0.001]
[1767769570404,3.07755905,3251.5,3251.3,0.001]
[1767769570796,4.04268247,3251.5,3251.3,0.001]
[1767769571005,0.71181102,3251.4,3251.3,0.001]
[1767769571524,3.78740922,3251.4,3251.3,0.001]
[1767769572605,4.75253264,3251.4,3251.3,0.001]
[1767769573129,0.96512342,3251.3,3250.7,0.001]
[1767769574701,3.0757874,3251.2,3250.7,0.001]
[1767769574902,3.0757874,3251.2,3250.7,0.17866776]
[1767769576125,3.0757874,3251.2,3250.7,0.001]
[1767769576319,6.1515748,3251.2,3250.7,0.001]
[1767769576719,6.1515748,3251.2,3250.7,0.97067761]
[1767769576919,0.96712342,3251.5,3250.7,0.97067761]
[1767769577210,0.28681053,3251.4,3250.7,0.97067761]
[1767769577514,0.96712342,3251.5,3250.7,0.97067761]
[1767769578934,6.1511964,3251.4,3250.7,0.97067761]
[1767769581840,6.1511964,3251.4,3251.0,0.001]
[1767769582139,8.13569681,3251.4,3251.0,0.001]
[1767769586627,0.96512342,3251.3,3251.0,0.001]
[1767769586818,0.96512342,3251.3,3250.7,0.001]
[1767769588745,7.11669822,3251.2,3250.7,0.001]
[1767769588946,0.96512342,3251.1,3250.7,0.001]
[1767769590145,3.07597662,3251.0,3250.7,0.001]
[1767769590359,0.96512342,3250.9,3250.7,0.001]
[1767769591052,6.15195324,3251.0,3250.7,0.001]
[1767769591226,6.15195324,3251.0,3250.5,1e-08]
[1767769593555,6.151764,3251.1,3250.5,1e-08]
[1767769603160,0.94624003,3251.0,3250.3,0.99385869]
[1767769603540,6.151764,3251.1,3250.3,0.99385869]
[1767769605463,0.002,3250.8,3250.3,0.99385869]
[1767769609764,0.002,3250.8,3250.4,1.02462413]
[1767769609934,0.002,3250.8,3250.4,0.99385869]
[1767769610339,0.002,3250.8,3250.4,1.17692129]
[1767769610644,0.94824003,3250.8,3250.4,0.1830626]
[1767769610840,0.94824003,3250.8,3250.2,0.83676733]
[1767769611469,0.94824003,3250.8,3250.2,0.806]
[1767769612039,3.07819525,3250.8,3250.3,0.99385869]
[1767769617573,0.002,3250.5,3250.3,0.99385869]
[1767769618070,0.002,3250.8,3250.3,0.99385869]
[1767769618278,0.002,3250.8,3250.4,0.17998587]
[1767769621079,3.077882,3251.1,3250.5,0.90134019]
[1767769621469,3.077882,3251.1,3250.6,0.03076355]
[1767769621961,4.00568374,3251.1,3250.5,0.90134019]
[1767769623375,4.00568374,3251.1,3250.5,0.93210468]
[1767769623564,4.00568374,3251.1,3250.5,1.35097754]
[1767769624781,4.00568374,3251.1,3250.5,1.32021305]
[1767769625281,4.00568374,3251.1,3250.5,0.90134019]
[1767769626683,4.00568374,3251.1,3250.5,0.93210468]
[1767769627485,4.00568374,3251.1,3250.5,0.90134019]
[1767769628991,0.92980174,3251.1,3250.5,0.90134019]
[1767769629584,4.00568693,3251.1,3250.5,0.90134019]
[1767769629788,0.002,3250.8,3250.5,0.90134019]
[1767769630684,0.002,3250.8,3250.4,0.17998587]
[1767769630887,0.00053883,3250.8,3250.4,0.17998587]
[1767769634487,0.00053883,3250.8,3250.5,0.41672176]
[1767769634869,0.00053883,3250.8,3250.4,0.17998587]
[1767769637096,0.92834057,3250.8,3250.4,0.17998587]
[1767769637311,0.00053883,3250.8,3250.4,1.09058097]
[1767769637904,0.00053883,3250.8,3250.4,0.17998587]
[1767769641986,0.00053883,3250.8,3250.7,0.001]
[1767769644901,0.00053883,3250.8,3250.7,0.0317626]
[1767769645099,0.00053883,3250.8,3250.7,0.001]
[1767769649190,0.00053883,3250.8,3250.7,0.9115951]
[1767769652314,0.00053883,3250.8,3250.7,0.001]
[1767769655496,0.002,3251.1,3250.7,0.001]
[1767769659415,0.91890808,3251.1,3250.7,0.001]
[1767769659617,0.91690808,3251.0,3250.7,0.001]
[1767769660614,3.07607124,3250.9,3250.7,0.001]
[1767769671629,3.9929264,3251.0,3250.7,0.001]
[1767769703652,0.95950709,3250.9,3250.7,0.001]
[1767769703853,0.95950709,3250.9,3249.9,4.02458186]
[1767769704027,6.15203664,3251.0,3249.9,4.02458186]
[1767769704028,0.95950709,3250.8,3249.9,4.02458186]
[1767769708253,4.03571018,3250.8,3249.9,4.02458186]
[1767769708453,0.95950709,3250.7,3249.9,4.02458186]
[1767769709631,0.95950709,3250.7,3249.9,3.0770003]
[1767769710031,0.95950709,3250.7,3249.8,0.001]
[1767769710230,4.03595686,3250.5,3249.8,0.001]
[1767769711158,0.95950709,3250.4,3249.8,0.001]
[1767769711949,0.95950709,3250.4,3250.2,0.001]
[1767769712532,4.0155225,3250.3,3250.2,0.001]
[1767769713734,0.93888343,3250.2,3249.4,0.03077491]
[1767769713936,0.93888343,3250.2,3249.5,1.32689751]
[1767769714132,0.93888343,3250.2,3249.5,0.93546524]
[1767769714557,3.0768284,3250.1,3249.5,0.93546524]
[1767769715075,7.09254023,3250.1,3249.3,0.93546524]
[1767769715838,0.93888343,3250.0,3249.2,0.001]
[1767769716056,0.93888343,3249.9,3249.2,0.001]
[1767769716759,0.70925402,3250.0,3248.7,0.93646524]
[1767769716760,0.93888343,3249.7,3248.7,0.93646524]
[1767769716977,0.93888343,3249.7,3248.7,0.001]
[1767769717159,0.93888343,3249.7,3248.7,0.93646524]
[1767769718274,0.93888343,3249.7,3248.8,0.93546524]
[1767769719042,0.93888343,3249.5,3248.8,0.93546524]
[1767769722348,0.93888343,3249.5,3248.8,1.33692674]
[1767769722549,4.01629178,3249.5,3248.8,1.33692674]
[1767769722750,0.93888343,3249.5,3248.8,1.33692674]
[1767769723176,4.01628667,3249.5,3248.8,1.33692674]
[1767769723577,4.01628667,3249.5,3249.1,0.001]
[1767769725271,0.806,3249.6,3249.1,0.001]
[1767769727078,3.88331559,3249.6,3249.1,0.001]
[1767769727286,0.93888343,3249.5,3249.1,0.001]
[1767769728369,4.01632498,3249.5,3249.1,0.001]
[1767769735683,0.002,3249.2,3249.1,0.001]
[1767769741871,0.94580268,3249.2,3248.7,0.001]
[1767769742192,0.002,3249.2,3248.8,0.90092777]
[1767769743074,0.002,3249.2,3248.4,0.90192777]
[1767769743075,0.807,3249.1,3248.4,0.90192777]
[1767769743897,3.07787011,3249.0,3248.4,0.90192777]
[1767769745289,4.02167279,3249.0,3248.4,0.90192777]
[1767769748066,0.94380268,3249.0,3248.4,0.90192777]
[1767769750007,0.94380268,3249.0,3248.7,0.002]
[1767769750306,1.42686442,3249.0,3248.7,0.002]
[1767769751300,4.50474436,3249.0,3248.7,0.002]
[1767769752499,1.42686442,3249.0,3248.7,0.002]
[1767769753605,0.94380268,3249.0,3248.4,0.001]
[1767769755105,0.807,3249.1,3248.4,0.001]
[1767769755504,0.807,3249.1,3248.4,0.90192777]
[1767769757739,4.02349861,3249.2,3248.4,0.90192777]
[1767769757740,0.002,3249.2,3248.6,4.50220516]
[1767769758011,0.002,3249.8,3249.2,0.90092777]
[1767769758211,0.94580268,3250.1,3249.1,4.50220516]
[1767769758212,0.94580268,3250.1,3249.1,0.90092777]
[1767769758425,0.94580268,3250.1,3249.2,4.50220516]
[1767769758583,0.002,3250.1,3249.3,0.90092777]
[1767769758784,0.002,3250.1,3249.5,0.90092777]
[1767769759713,0.002,3250.1,3249.6,3.07730182]
[1767769759892,0.807,3250.3,3249.6,3.97822959]
[1767769760081,0.94380268,3250.2,3249.6,3.07730182]
[1767769760285,0.94380268,3250.2,3249.4,0.54031329]
[1767769760593,0.94380268,3250.1,3249.2,3.07764239]
[1767769760983,3.07666922,3250.3,3249.4,0.90092777]
[1767769761184,1.75080268,3250.4,3249.6,0.90092777]
[1767769762006,0.94380268,3250.3,3249.6,3.97816654]
[1767769762188,0.94380268,3250.3,3249.6,0.90092777]
[1767769762394,0.001,3250.0,3249.6,0.90092777]
[1767769762690,0.94380268,3250.3,3249.6,0.90092777]
[1767769763499,0.94380268,3250.3,3249.4,3.07746296]
[1767769763782,0.94380268,3250.3,3249.4,5.13634538]
[1767769764216,0.94380268,3250.3,3249.5,3.07739485]
[1767769764613,0.94380268,3250.3,3249.5,3.97832262]
[1767769766088,0.94380268,3250.3,3249.6,0.90092777]
[1767769770312,4.0204553,3250.3,3249.6,0.90092777]
[1767769774122,4.0204553,3250.3,3249.9,0.001]
[1767769774296,0.002,3250.0,3249.9,0.001]
[1767769775428,0.94580268,3250.3,3249.5,3.07739485]
[1767769776500,0.94580268,3250.3,3249.6,3.07728763]
[1767769776721,0.94580268,3250.3,3249.4,4.23544021]
[1767769776722,0.94580268,3250.3,3249.5,3.10817048]
[1767769777097,0.002,3250.3,3249.6,0.98293423]
[1767769777298,0.002,3250.3,3249.7,0.98293423]
[1767769777724,0.002,3250.3,3249.7,0.98093423]
[1767769778299,0.002,3250.3,3249.7,0.97279749]
[1767769778929,0.002,3250.3,3249.7,4.04999015]
[1767769779103,0.002,3250.3,3249.7,4.05000425]
[1767769779303,0.002,3250.3,3249.7,0.97279749]
[1767769781315,0.002,3250.3,3249.7,4.04999277]
[1767769781632,0.002,3250.3,3249.7,1.68861365]
[1767769781801,0.002,3250.3,3249.7,0.97279749]
[1767769783125,0.002,3250.3,3249.7,4.04998059]
[1767769783541,0.002,3250.3,3249.7,0.97279749]
[1767769784500,0.002,3250.3,3249.8,0.98293423]